bitfinex/quotes_ETHUSD_20241003
["timestamp","ask_amount","ask_price","bid_price","bid_amount"]
[1727975619893,4.28126,2335.8,2335.7,2.65041498]
[1727975620269,4.28101,2335.9,2335.7,2.65041498]
[1727975620576,4.28101,2335.9,2335.7,3.40991498]
[1727975620784,8.5621,2335.9,2335.7,3.40991498]
[1727975621087,4.28118,2335.8,2335.7,3.40991498]
[1727975621962,4.28137,2335.7,2335.6,2.65041498]
[1727975622365,4.28155,2335.6,2335.5,2.65041498]
[1727975624646,8.56224,2335.9,2335.6,0.8027]
[1727975624841,4.28073,2336.1,2335.8,2.20817485]
[1727975625048,4.28073,2336.1,2336.0,1.7663863]
[1727975626056,7.28073,2336.1,2336.0,1.7663863]
[1727975628532,4.28082,2336.0,2335.9,1.7663863]
[1727975628691,4.28082,2336.0,2335.9,2.20677879]
[1727975629594,7.28073,2336.1,2335.9,2.20677879]
[1727975629904,4.28073,2336.1,2336.0,1.76555879]
[1727975630106,4.28073,2336.1,2335.9,2.85558567]
[1727975630304,4.28073,2336.1,2336.0,2.20677879]
[1727975630848,4.28031,2336.3,2336.0,2.2069839]
[1727975631014,4.28027,2336.3,2336.2,1.76540509]
[1727975631342,5.08177,2336.3,2336.2,1.76540509]
[1727975631500,5.08177,2336.3,2336.2,1.32415081]
[1727975632215,8.08177,2336.3,2336.2,1.32415081]
[1727975633543,8.08177,2336.3,2336.2,1.76540509]
[1727975633761,9.317957,2336.3,2336.2,1.76540509]
[1727975634040,7.28045,2336.2,2336.1,1.76540509]
[1727975634636,7.28045,2336.2,2336.1,2.2069839]
[1727975635402,7.28045,2336.2,2336.1,2.2107839]
[1727975635752,3.0,2336.2,2335.6,0.8127]
[1727975635968,4.281,2335.9,2335.6,0.8127]
[1727975636275,8.56212,2335.9,2335.6,0.8127]
[1727975636427,4.281,2335.9,2335.6,0.8127]
[1727975636627,4.28121,2335.8,2335.6,0.8127]
[1727975637053,4.281,2335.9,2335.6,0.8127]
[1727975637265,4.28119,2335.8,2335.6,0.8127]
[1727975637628,4.28176,2335.5,2335.3,0.7711]
[1727975637945,4.28099,2336.0,2335.0,0.7711]
[1727975637946,4.28221,2335.3,2335.0,0.7711]
[1727975638282,4.28245,2335.2,2335.0,0.7711]
[1727975638636,3.8055,2335.8,2334.3,0.8231]
[1727975638855,5.38003207,2336.1,2334.4,4.28365]
[1727975638856,4.28303,2334.8,2334.4,4.28365]
[1727975639141,4.28273,2335.0,2334.3,5.10693]
[1727975639142,4.28273,2335.0,2334.5,4.28352]
[1727975639348,4.28273,2335.0,2334.6,5.03811]
[1727975640271,4.28297,2334.9,2334.6,0.7548]
[1727975640428,4.2826,2335.1,2334.6,0.7548]
[1727975640633,4.2823,2335.2,2334.7,4.28309]
[1727975640841,4.28224,2335.3,2334.8,4.28298]
[1727975641280,8.56447,2335.3,2334.8,4.28298]
[1727975641489,3.0,2335.5,2334.6,0.7548]
[1727975641643,4.28183,2335.5,2335.1,4.28239]
[1727975641847,4.2815,2335.7,2334.9,0.7566]
[1727975641848,4.28137,2335.7,2334.9,0.7566]
[1727975642251,4.28225,2335.3,2334.9,0.7566]
[1727975642453,0.7543,2335.9,2334.9,0.7566]
[1727975642790,4.28204,2335.4,2334.9,5.03931]
[1727975642990,4.28204,2335.4,2335.0,4.83255]
[1727975643362,4.28185,2335.5,2335.0,4.83255]
[1727975643562,4.28185,2335.5,2334.2,8.63134897]
[1727975643563,3.0,2335.6,2335.2,0.55]
[1727975643748,4.28176,2335.5,2335.2,0.55]
[1727975644592,3.0,2335.6,2335.1,0.7813]
[1727975644748,7.28165,2335.6,2335.1,0.7813]
[1727975645104,4.28159,2335.6,2335.2,4.28221]
[1727975645307,0.86403207,2336.1,2335.2,0.7807]
[1727975645308,4.28074,2336.1,2335.2,0.7807]
[1727975645593,4.2811,2335.9,2335.7,0.7807]
[1727975645745,5.55047032,2336.3,2335.2,0.7807]
[1727975645963,4.28126,2335.8,2335.2,0.7807]
[1727975646216,0.8219,2336.0,2335.2,0.7807]
[1727975646217,4.2821,2335.3,2335.2,0.7807]
[1727975646433,4.28238,2335.2,2334.9,0.7807]
[1727975646719,4.28113,2335.9,2334.9,0.7807]
[1727975646720,0.8219,2335.5,2334.9,0.7807]
[1727975646896,4.28178,2335.5,2335.1,4.28239]
[1727975647078,4.28161,2335.6,2334.9,0.7807]
[1727975647079,4.28236,2335.2,2334.9,0.7807]
[1727975648106,4.28203,2335.4,2334.9,0.7807]
[1727975648107,4.28194,2335.4,2334.9,0.7807]
[1727975648324,4.28222,2335.3,2334.9,0.7807]
[1727975648468,4.28222,2335.3,2334.9,5.06352]
[1727975648803,4.28194,2335.4,2334.9,5.06352]
[1727975648804,4.28201,2335.4,2334.9,0.7807]
[1727975649019,4.28236,2335.2,2334.9,0.7807]
[1727975649167,4.28302,2334.8,2334.6,0.7506]
[1727975649372,4.28275,2335.0,2334.6,0.7506]
[1727975649613,4.28275,2335.0,2334.6,5.0339]
[1727975649812,4.28236,2335.2,2334.8,4.28295]
[1727975650014,4.28236,2335.2,2334.8,8.56581]
[1727975650181,11.56416,2335.4,2334.9,4.28267]
[1727975650509,8.56403,2335.4,2334.9,8.56538]
[1727975650960,4.28201,2335.4,2335.0,4.28263]
[1727975651116,4.2821,2335.3,2334.9,4.28267]
[1727975651470,4.28201,2335.4,2335.0,4.28254]
[1727975651783,3.0,2335.7,2335.3,4.28199]
[1727975651984,4.28107,2335.9,2335.5,4.28168]
[1727975652314,0.8087,2336.1,2335.4,0.8146]
[1727975652472,8.56341,2335.6,2335.4,0.8146]
[1727975652672,4.2817,2335.6,2335.4,0.8146]
[1727975652905,4.28173,2335.5,2335.1,5.097]
[1727975653405,8.56362,2335.5,2335.1,0.8146]
[1727975653567,4.28173,2335.5,2335.1,5.09706]
[1727975653768,4.28126,2335.8,2335.3,0.55]
[1727975654006,4.28126,2335.8,2335.4,4.28183]
[1727975654210,4.28126,2335.8,2335.3,4.282]
[1727975654509,3.0,2336.0,2335.1,0.8146]
[1727975654699,3.0,2336.0,2335.3,4.28201]
[1727975654700,8.56257,2335.8,2335.3,4.28201]
[1727975655208,8.0894,2336.1,2335.6,0.8269]
[1727975655510,4.28092,2336.0,2335.6,0.8269]
[1727975655716,4.2809,2336.0,2335.6,0.8269]
[1727975656012,4.28016,2336.4,2335.9,4.28092]
[1727975656315,4.28045,2336.2,2336.1,0.7932]
[1727975656615,4.28063,2336.2,2335.7,4.28128]
[1727975656915,4.28063,2336.2,2335.6,5.07472]
[1727975656916,4.28019,2336.4,2335.8,4.28106]
[1727975657211,5.02976,2336.8,2336.0,5.10177]
[1727975657212,4.27995,2336.5,2336.0,5.10177]
[1727975657438,4.27982,2336.6,2336.1,4.28063]
[1727975657588,4.27905,2337.0,2336.5,0.8211]
[1727975657589,4.27918,2336.9,2336.5,0.8211]
[1727975657789,4.27954,2336.7,2336.5,0.8211]
[1727975658023,0.7727,2337.1,2336.3,4.28015]
[1727975658024,4.2795,2336.8,2336.3,0.8211]
[1727975658204,4.2795,2336.8,2336.2,0.510173]
[1727975658205,4.28035,2336.3,2336.1,0.8211]
[1727975658560,0.7727,2336.6,2335.8,4.2811]
[1727975658561,4.28073,2336.1,2335.8,0.8211]
[1727975658853,8.5615,2336.1,2335.8,0.8211]
[1727975659025,4.28049,2336.2,2335.8,0.8211]
[1727975659410,4.28049,2336.2,2335.8,5.10226]
[1727975659910,4.28065,2336.1,2335.8,0.8211]
[1727975660511,4.28091,2336.0,2335.5,5.03641]
[1727975660829,4.28091,2336.0,2335.5,9.31807]
[1727975661036,3.0,2336.2,2335.5,0.7548]
[1727975661235,4.2811,2335.9,2335.5,0.7548]
[1727975661454,4.28087,2336.0,2335.5,0.7548]
[1727975661746,4.28087,2336.0,2335.5,5.03641]
[1727975661747,4.28101,2335.9,2335.5,5.03641]
[1727975662159,4.2812,2335.8,2335.5,0.7548]
[1727975662669,4.28155,2335.6,2335.2,0.7548]
[1727975662808,0.856221,2335.8,2335.2,5.03699]
[1727975663008,4.28145,2335.7,2335.2,5.03699]
[1727975663234,4.28155,2335.6,2335.2,5.03699]
[1727975663659,4.28145,2335.7,2335.2,5.03699]
[1727975663957,4.28158,2335.6,2335.2,5.03699]
[1727975664458,4.2812,2335.8,2335.2,5.968924]
[1727975664752,4.28066,2336.1,2335.7,4.28135]
[1727975664936,4.28066,2336.1,2335.6,4.28145]
[1727975665146,4.28066,2336.1,2335.7,4.28134]
[1727975665326,4.28066,2336.1,2335.8,0.7548]
[1727975665715,4.28071,2336.1,2335.8,0.7548]
[1727975665949,4.281,2335.9,2335.8,0.7548]
[1727975666195,4.281,2335.9,2335.5,4.28164]
[1727975666196,4.28121,2335.8,2335.5,0.7621]
[1727975666398,4.2812,2335.8,2335.4,4.28189]
[1727975667219,4.28093,2336.0,2335.5,4.28168]
[1727975667220,4.28103,2335.9,2335.5,4.28168]
[1727975667505,4.28093,2336.0,2335.5,4.28168]
[1727975667725,4.28113,2335.9,2335.5,4.28168]
[1727975667865,4.28113,2335.9,2335.4,1.0264944]
[1727975668069,4.28113,2335.9,2335.5,4.83171]
[1727975668315,4.28075,2336.1,2335.6,4.28155]
[1727975668316,4.28086,2336.0,2335.6,4.28155]
[1727975668519,4.28102,2335.9,2335.5,5.92262444]
[1727975668964,4.28019,2336.4,2335.8,4.28111]
[1727975669170,4.28019,2336.4,2335.6,0.8093]
[1727975669171,4.28016,2336.4,2336.0,4.28068]
[1727975669634,4.27995,2336.5,2336.1,4.28063]
[1727975669907,8.55999,2336.5,2336.1,4.28063]
[1727975670113,4.28009,2336.4,2336.0,4.28078]
[1727975670283,4.28009,2336.4,2336.0,5.21393]
[1727975670673,4.28009,2336.4,2336.0,9.49468]
[1727975670913,7.27975,2336.6,2336.1,4.28051]
[1727975671066,4.27975,2336.6,2336.3,0.7934]
[1727975671273,4.27924,2336.9,2336.3,0.7934]
[1727975671472,4.27944,2336.8,2336.3,0.7934]
[1727975671721,4.786004,2336.9,2336.4,4.27998]
[1727975671722,8.55867,2336.9,2336.4,4.27998]
[1727975671918,4.27947,2336.8,2336.4,4.27998]
[1727975672106,4.27947,2336.8,2336.3,5.07353]
[1727975672107,4.27954,2336.7,2336.3,5.07353]
[1727975672316,8.55897,2336.8,2336.3,5.07353]
[1727975672519,8.55897,2336.8,2336.4,0.507353]
[1727975673128,8.55892,2336.8,2336.4,0.507353]
[1727975673312,4.27955,2336.7,2336.4,0.507353]
[1727975673934,3.7873,2337.1,2336.4,4.787353]
[1727975673935,4.2792,2336.9,2336.4,4.787353]
[1727975674140,8.5585,2336.9,2336.5,0.5580753]
[1727975674430,4.27936,2336.8,2336.4,4.82994]
[1727975674950,4.27885,2337.1,2336.5,4.27981]
[1727975675175,4.27885,2337.1,2336.4,0.55]
[1727975675176,4.72618363,2337.5,2337.0,4.27892]
[1727975675434,4.72618363,2337.5,2336.6,5.550001]
[1727975675435,0.44802363,2337.5,2337.3,4.27842]
[1727975675632,4.27773,2337.7,2337.2,5.06574]
[1727975675930,4.27796,2337.6,2337.2,6.000199]
[1727975676132,4.27816,2337.5,2337.2,1.721759]
[1727975676447,4.27791,2337.6,2337.3,0.55]
[1727975676595,4.27791,2337.6,2337.3,1.2050299]
[1727975677512,4.27773,2337.7,2337.3,1.2050299]
[1727975677720,4.27789,2337.6,2337.3,1.2050299]
[1727975678040,4.27773,2337.7,2337.3,1.2050299]
[1727975678222,4.27745,2337.9,2337.5,0.792]
[1727975678407,4.27713,2338.1,2337.6,4.82778]
[1727975678739,3.0,2338.2,2337.5,1.41951999]
[1727975678740,4.27766,2337.8,2337.5,1.41951999]
[1727975679912,4.27705,2338.1,2337.5,0.792]
[1727975680139,4.27774,2337.7,2337.5,0.792]
[1727975680545,8.55554,2337.7,2337.5,0.792]
[1727975680835,4.27789,2337.6,2337.2,1.3192]
[1727975681106,4.27844,2337.3,2336.9,0.7924]
[1727975681257,4.27844,2337.3,2336.9,5.07154]
[1727975681416,4.2783,2337.4,2336.9,5.07154]
[1727975682125,4.27844,2337.3,2336.9,5.07154]
[1727975682312,4.27872,2337.2,2336.9,0.7924]
[1727975682511,0.937536,2337.2,2336.6,0.7763]
[1727975682713,0.8182,2337.4,2336.6,0.7763]
[1727975682714,4.27927,2336.9,2336.6,0.7763]
[1727975682955,4.2794,2336.8,2336.6,0.7763]
[1727975683160,4.27893,2337.1,2336.4,0.7763]
[1727975683365,4.27937,2336.8,2336.4,0.7763]
[1727975683682,4.2799,2336.5,2336.0,4.28073]
[1727975683968,4.2799,2336.5,2336.1,1.249073]
[1727975684171,4.28027,2336.3,2336.1,1.249073]
[1727975684518,4.28045,2336.2,2336.1,0.821]
[1727975684714,4.28045,2336.2,2335.8,0.8265]
[1727975684946,4.28029,2336.3,2335.8,0.8265]
[1727975685143,4.28029,2336.3,2335.8,5.1076]
[1727975685375,8.56065,2336.3,2335.8,5.1076]
[1727975685559,4.28046,2336.2,2335.9,0.51076]
[1727975686157,4.28029,2336.3,2335.9,0.51076]
[1727975686354,5.11064,2336.5,2335.9,0.51076]
[1727975686355,4.28011,2336.4,2336.0,4.28077]
[1727975687273,4.28031,2336.3,2335.9,4.79175]
[1727975687467,4.28011,2336.4,2335.9,4.79175]
[1727975688448,4.28011,2336.4,2336.0,4.28076]
[1727975688644,0.8306,2336.5,2336.0,4.28076]
[1727975688645,5.11051,2336.5,2336.0,0.989901]
[1727975688863,4.27991,2336.5,2336.1,4.28063]
[1727975689062,4.27991,2336.5,2336.0,5.270691]
[1727975689277,4.28009,2336.4,2336.0,5.270691]
[1727975689479,4.28009,2336.4,2336.1,0.8088]
[1727975691389,4.27987,2336.6,2336.1,0.8088]
[1727975691682,4.27992,2336.5,2336.1,0.8088]
[1727975691896,3.8286,2337.0,2336.1,1.8448401]
[1727975692083,4.27954,2336.7,2336.3,4.28019]
[1727975692276,4.2791,2337.0,2336.6,4.27972]
[1727975692495,4.2791,2337.0,2336.5,0.8047]
[1727975692496,4.27921,2336.9,2336.5,0.8047]
[1727975692700,4.27954,2336.7,2336.5,0.8047]
[1727975693200,4.27936,2336.8,2336.5,0.8047]
[1727975693771,4.27921,2336.9,2336.5,0.8047]
[1727975694110,4.279,2337.0,2336.5,5.592965]
[1727975694431,4.27918,2336.9,2336.5,5.592965]
[1727975694704,4.279,2337.0,2336.5,5.592965]
[1727975695017,8.55812,2337.0,2336.5,5.592965]
[1727975695375,4.27918,2336.9,2336.5,5.592965]
[1727975695966,4.279,2337.0,2336.6,5.10514715]
[1727975696173,4.27883,2337.1,2336.6,5.10514715]
[1727975696375,4.27899,2337.0,2336.6,5.10514715]
[1727975696580,3.7555,2337.4,2336.6,5.10511715]
[1727975696780,4.27881,2337.1,2336.7,5.47127122]
[1727975697479,4.27881,2337.1,2336.7,1.19183122]
[1727975697698,8.55751,2337.2,2336.7,1.19183122]
[1727975697896,4.27885,2337.1,2336.7,5.47129122]
[1727975699623,0.44797022,2337.7,2337.3,4.27836]
[1727975699832,0.44797022,2337.7,2337.5,0.7704]
[1727975700032,4.27731,2338.0,2337.5,5.04845]
[1727975700525,5.07654,2338.2,2337.5,0.7704]
[1727975700689,9.36574,2338.6,2338.1,4.27689]
[1727975700896,9.36574,2338.6,2338.0,0.7698]
[1727975700897,4.27662,2338.3,2338.0,0.7698]
[1727975701080,0.8135,2338.7,2337.7,0.7698]
[1727975701282,0.8135,2338.1,2337.3,1.3198]
[1727975701520,4.27789,2337.6,2337.3,1.3198]
[1727975701729,4.27778,2337.7,2337.3,0.7698]
[1727975701926,4.27807,2337.6,2337.3,0.7698]
[1727975702079,4.27778,2337.7,2337.3,0.7698]
[1727975702080,4.27772,2337.7,2337.3,0.7698]
[1727975702428,4.27602,2338.7,2337.3,0.7698]
[1727975702429,5.08994,2338.4,2337.4,0.7698]
[1727975702629,7.27669,2338.3,2337.9,5.04712]
[1727975702781,4.27627,2338.5,2338.1,4.2769]
[1727975702978,4.27593,2338.7,2337.9,0.7698]
[1727975703179,4.2769,2338.2,2337.9,0.7698]
[1727975703535,4.27662,2338.3,2337.9,0.7698]
[1727975704329,4.27681,2338.2,2337.9,0.7698]
[1727975705036,8.55373,2338.2,2337.9,0.7698]
[1727975705183,4.27681,2338.2,2337.9,0.7698]
[1727975705529,8.03741,2338.8,2338.0,0.62814044]
[1727975705827,4.27561,2338.9,2338.5,0.7814]
[1727975706392,4.27543,2339.0,2338.5,0.7814]
[1727975706393,4.27536,2339.0,2338.5,0.7814]
[1727975706627,5.03687,2339.1,2338.5,5.05756]
[1727975706811,4.27559,2338.9,2338.5,1.714787]
[1727975707130,4.27633,2338.5,2338.2,0.7596]
[1727975707481,4.27564,2338.9,2337.9,0.7596]
[1727975707482,4.27698,2338.1,2337.9,0.7596]
[1727975707726,4.27661,2338.3,2337.9,0.7596]
[1727975707948,0.8218,2338.6,2337.9,0.7596]
[1727975708228,4.27689,2338.2,2337.6,5.03739]
[1727975708380,4.27697,2338.1,2337.7,4.781339]
[1727975708996,4.27672,2338.3,2337.7,4.781339]
[1727975708997,4.27671,2338.3,2337.9,4.27731]
[1727975709210,3.0,2338.5,2337.9,0.55]
[1727975709394,4.27625,2338.5,2338.2,0.7596]
[1727975709923,4.27624,2338.5,2338.2,1.263254]
[1727975710133,4.27624,2338.5,2338.2,0.7596]
[1727975710314,4.27517,2339.1,2337.3,4.27827]
[1727975710315,4.27672,2338.3,2337.9,0.7523]
[1727975710480,4.27673,2338.3,2337.9,0.7523]
[1727975710826,4.27644,2338.4,2338.0,4.82714]
[1727975711033,4.27581,2338.8,2338.3,0.55]
[1727975711183,4.27581,2338.8,2338.3,4.82652]
[1727975711383,4.27581,2338.8,2338.4,4.27642]
[1727975711596,4.27581,2338.8,2338.3,0.55]
[1727975711828,4.27595,2338.7,2338.3,0.55]
[1727975712030,4.27581,2338.8,2338.4,5.261962]
[1727975712329,4.27604,2338.7,2338.4,0.985562]
[1727975712548,0.8027,2339.1,2338.1,0.985663]
[1727975712722,0.7888,2338.7,2337.9,0.806]
[1727975713026,4.27648,2338.4,2338.0,4.27714]
[1727975713188,4.27648,2338.4,2338.1,0.508314]
[1727975713386,4.27711,2338.1,2337.9,0.806]
[1727975713786,4.27715,2338.0,2337.9,0.806]
[1727975714105,4.27715,2338.0,2337.7,0.7673]
[1727975714421,5.06468,2338.7,2337.7,0.7673]
[1727975714422,4.27616,2338.6,2337.7,0.7673]
[1727975714627,4.27655,2338.4,2337.7,5.045]
[1727975714807,4.27625,2338.5,2337.8,0.932273]
[1727975715129,8.55448,2338.0,2337.8,0.932273]
[1727975715287,8.55448,2338.0,2337.7,0.7673]
[1727975715486,5.06483,2338.7,2337.7,0.7673]
[1727975715487,4.27699,2338.1,2337.7,0.7673]
[1727975715731,4.27716,2338.0,2337.7,0.7673]
[1727975715938,0.7888,2338.7,2337.9,4.27727]
[1727975715939,4.2767,2338.3,2337.9,4.27727]
[1727975716225,4.2749,2339.3,2338.4,0.55]
[1727975716226,0.8196,2339.0,2338.4,0.55]
[1727975716391,4.27602,2338.7,2338.5,0.482651]
[1727975716830,4.27566,2338.9,2338.5,0.482651]
[1727975717022,4.27595,2338.7,2338.5,0.482651]
[1727975717209,4.27658,2338.4,2338.1,0.7726]
[1727975717410,4.27663,2338.3,2338.1,0.7726]
[1727975717617,4.27609,2338.6,2338.1,0.7726]
[1727975718014,8.55227,2338.6,2338.1,5.04945]
[1727975718230,8.55227,2338.6,2338.2,4.82677]
[1727975718231,4.27609,2338.6,2338.2,4.82677]
[1727975718402,3.0,2338.9,2338.3,0.987622]
[1727975718655,4.27608,2338.6,2338.3,0.987622]
[1727975718807,3.0,2338.9,2338.3,0.987622]
[1727975718808,4.27559,2338.9,2338.4,0.55]
[1727975719026,4.27559,2338.9,2338.4,4.2764]
[1727975719204,4.276,2338.7,2338.2,0.55]
[1727975719540,4.27614,2338.6,2338.3,0.559947]
[1727975719843,4.276,2338.7,2338.1,0.7726]
[1727975719844,4.2766,2338.4,2338.1,0.7726]
[1727975720007,4.27622,2338.6,2338.1,0.7726]
[1727975720330,4.27632,2338.5,2338.1,0.7726]
[1727975720634,4.27657,2338.4,2338.1,0.7726]
[1727975720936,4.27632,2338.5,2338.1,1.277591]
[1727975721233,4.27643,2338.4,2338.1,1.277591]
[1727975721444,0.7777,2338.9,2338.1,0.7726]
[1727975721590,4.27614,2338.6,2338.1,0.7726]
[1727975722118,5.05333,2338.9,2338.1,0.7726]
[1727975722119,4.27653,2338.4,2338.1,0.7726]
[1727975722293,4.27656,2338.4,2337.8,0.8028]
[1727975722504,4.2759,2338.7,2338.2,4.2767]
[1727975722742,4.2759,2338.7,2338.3,4.78447]
[1727975723639,4.27556,2338.9,2338.3,4.78447]
[1727975723840,0.8067,2339.1,2338.3,0.50795]
[1727975724103,4.27653,2338.4,2338.1,0.8028]
[1727975724306,4.27714,2338.1,2337.8,0.81]
[1727975724707,4.27714,2338.1,2337.6,4.2778]
[1727975724708,4.27734,2337.9,2337.3,4.27829]
[1727975724996,4.27778,2337.7,2337.4,1.978829]
[1727975725258,4.27755,2337.8,2337.4,0.805]
[1727975725259,4.27762,2337.8,2337.4,0.805]
[1727975725416,4.27719,2338.0,2337.6,4.27788]
[1727975725621,3.0,2338.5,2337.6,4.27788]
[1727975725622,0.7922,2338.3,2337.6,4.27788]
[1727975725846,4.27607,2338.6,2338.1,4.27686]
[1727975726202,4.27529,2339.1,2338.0,4.27713]
[1727975726203,0.7922,2339.0,2338.0,4.27713]
[1727975726462,4.27636,2338.5,2338.1,4.787853]
[1727975726612,4.27572,2338.8,2338.3,4.82653]
[1727975726811,4.27572,2338.8,2338.4,0.7557]
[1727975727040,4.27589,2338.7,2338.4,0.7557]
[1727975727317,8.55151,2338.8,2338.4,0.7557]
[1727975727921,4.27572,2338.8,2338.5,0.558228]
[1727975728147,8.55158,2338.8,2338.5,0.558228]
[1727975728461,4.27572,2338.8,2338.5,0.558228]
[1727975729227,4.27595,2338.7,2338.5,0.558228]
[1727975729754,4.27572,2338.8,2338.5,0.558228]
[1727975729959,8.55153,2338.8,2338.5,0.558228]
[1727975730258,4.27623,2338.6,2338.2,0.7632]
[1727975730558,0.7922,2339.0,2338.4,0.55]
[1727975730868,3.0,2339.2,2338.8,4.27568]
[1727975731162,4.27496,2339.3,2338.9,0.427568]
[1727975731163,4.27486,2339.3,2338.9,0.427568]
[1727975731454,4.27533,2339.0,2338.9,0.427568]
[1727975731612,4.27533,2339.0,2338.7,0.55]
[1727975732312,4.27522,2339.1,2338.7,0.55]
[1727975732709,4.27522,2339.1,2338.7,4.82585]
[1727975732911,4.2756,2338.9,2338.6,0.7632]
[1727975733146,4.27498,2339.2,2338.7,4.8258]
[1727975733778,0.7708,2339.3,2338.6,1.694772]
[1727975734082,4.27485,2339.3,2338.8,4.27557]
[1727975734236,4.27504,2339.2,2338.7,4.82586]
[1727975734436,4.2752,2339.1,2338.7,4.82586]
[1727975734995,4.27452,2339.5,2338.9,4.27546]
[1727975735153,7.27422,2339.7,2339.2,0.55]
[1727975735486,4.27441,2339.5,2339.2,0.55]
[1727975735669,8.54896,2339.5,2339.2,0.55]
[1727975735983,4.27427,2339.6,2339.2,0.55]
[1727975736163,4.27451,2339.5,2339.2,0.55]
[1727975736475,8.54902,2339.5,2339.2,0.55]
[1727975736683,4.27468,2339.4,2339.2,1.1545286]
[1727975737678,4.27425,2339.6,2339.2,1.1545286]
[1727975737885,4.27453,2339.5,2339.2,1.1545286]
[1727975738246,8.54909,2339.5,2339.2,1.1545286]
[1727975738441,4.27453,2339.5,2339.2,1.1545286]
[1727975738688,4.27507,2339.2,2338.8,0.8208]
[1727975738888,4.27462,2339.4,2338.8,0.8208]
[1727975739060,4.27486,2339.3,2338.8,5.09636]
[1727975739463,4.27551,2338.9,2338.4,4.27635]
[1727975739667,4.27643,2338.4,2338.2,0.7855]
[1727975739892,0.8298,2338.7,2337.9,0.7855]
[1727975740181,0.8298,2338.7,2337.6,0.7855]
[1727975740182,4.27742,2337.9,2337.6,0.7855]
[1727975740392,4.27764,2337.8,2337.6,2.465678]
[1727975740543,4.2777,2337.7,2337.6,0.7855]
[1727975740872,4.27641,2338.5,2337.3,4.27834]
[1727975740873,4.27707,2338.1,2337.3,0.7585]
[1727975741188,4.27663,2338.3,2337.8,5.0359]
[1727975741389,4.27692,2338.2,2337.8,0.7585]
[1727975741553,4.27663,2338.3,2337.8,9.31343]
[1727975741895,4.27709,2338.1,2337.9,0.931343]
[1727975742186,0.7815,2338.6,2337.3,7.29937472]
[1727975742187,4.2769,2338.2,2337.4,0.7585]
[1727975742492,4.27783,2337.7,2337.4,0.7585]
[1727975742687,5.05848,2338.1,2337.4,0.7585]
[1727975742688,4.27797,2337.6,2337.4,0.7585]
[1727975743194,4.27766,2337.8,2337.4,0.7585]
[1727975743390,0.7815,2338.1,2337.4,5.03674]
[1727975743391,4.27746,2337.9,2337.4,5.03674]
[1727975743685,4.27775,2337.7,2337.5,0.931517]
[1727975744181,4.27775,2337.7,2337.1,4.2787]
[1727975744182,4.27807,2337.5,2337.1,4.2787]
[1727975744385,4.27747,2337.9,2337.2,5.04109]
[1727975744585,4.278,2337.6,2337.2,5.04109]
[1727975744886,4.278,2337.6,2337.2,0.7625]
[1727975745070,4.27823,2337.5,2337.2,0.7625]
[1727975745276,4.27795,2337.6,2337.2,2.94944915]
[1727975745793,4.27795,2337.6,2337.3,1.33057335]
[1727975746093,4.27763,2337.8,2337.3,4.27831]
[1727975746387,4.27763,2337.8,2337.4,4.8282]
[1727975747199,4.27811,2337.5,2337.3,1.33057335]
[1727975747406,4.705921,2337.5,2337.2,1.33057335]
[1727975747683,4.705921,2337.5,2337.1,1.33057335]
[1727975747684,4.27827,2337.4,2337.1,1.33057335]
[1727975747922,4.27833,2337.4,2337.1,1.33057335]
[1727975748048,4.27818,2337.5,2337.1,1.33057335]
[1727975748251,4.27825,2337.4,2337.1,1.33057335]
[1727975748591,0.8205,2337.6,2337.1,6.56848248]
[1727975748592,4.27798,2337.6,2337.1,6.56848248]
[1727975748775,11.55563,2337.7,2337.2,5.03352]
[1727975748948,7.2778,2337.7,2337.2,6.36409335]
[1727975749279,4.2779,2337.6,2337.3,0.55]
[1727975749874,4.27758,2337.8,2337.3,4.82843]
[1727975750057,4.27758,2337.8,2337.5,0.55]
[1727975750646,4.27758,2337.8,2337.5,1.88057335]
[1727975751183,4.27741,2337.9,2337.5,0.55]
[1727975751489,4.27752,2337.8,2337.7,0.55]
[1727975751657,4.27736,2337.9,2337.7,0.55]
[1727975752281,4.27707,2338.1,2337.7,5.387645]
[1727975752784,7.27679,2338.2,2337.7,5.387645]
[1727975752959,4.27724,2338.0,2337.7,1.110015]
[1727975753342,4.27764,2337.8,2337.5,1.33057335]
[1727975753546,4.27764,2337.8,2337.4,6.42297335]
[1727975754286,4.27764,2337.8,2337.4,2.14477335]
[1727975754443,4.27783,2337.7,2337.4,2.14477335]
[1727975754788,3.0,2338.2,2337.4,2.14477335]
[1727975754789,4.2773,2338.0,2337.4,2.14477335]
[1727975754957,4.277,2338.1,2337.5,5.09761812]
[1727975755290,4.27705,2338.1,2337.5,6.42819147]
[1727975755452,4.27717,2338.0,2337.6,4.27786]
[1727975755781,4.27736,2337.9,2337.6,1.88057335]
[1727975755982,4.27736,2337.9,2337.6,0.55]
[1727975756199,4.27736,2337.9,2337.6,2.83722228]
[1727975756683,4.2777,2337.7,2337.5,1.33057335]
[1727975756982,4.2775,2337.9,2337.5,1.33057335]
[1727975757188,4.27761,2337.8,2337.5,1.33057335]
[1727975757500,4.27772,2337.7,2337.5,1.33057335]
[1727975757993,4.27789,2337.6,2337.4,1.33057335]
[1727975758148,4.27807,2337.5,2337.4,1.33057335]
[1727975758348,4.27789,2337.6,2337.4,1.33057335]
[1727975758548,4.27716,2338.0,2337.4,1.33057335]
[1727975758776,4.27797,2337.6,2337.3,1.33057335]